[Event "3rd President Cup-A 2024"]
[Site "Tashkent"]
[Date "2024.11.28"]
[Round "8.5"]
[White "Saydaliev, Saidakbar"]
[Black "Puranik, Abhimanyu"]
[Result "1-0"]
[ECO "B67"]
[WhiteElo "2473"]
[BlackElo "2652"]
[Annotator "TA"]
[PlyCount "111"]
[EventDate "2024.11.22"]
[EventType "swiss"]
[EventCountry "UZB"]
[SourceTitle "playchess.com"]
[Source "ChessBase"]
[SourceQuality "1"]
[TimeControl "5400+30"]

{[%evp 16,111,29,27,33,22,31,26,41,21,53,54,62,16,23,0,23,0,40,37,85,47,36,36,66,20,19,27,27,33,70,70,72,69,59,66,66,58,74,70,141,133,173,182,168,82,95,93,117,63,85,0,111,104,116,71,76,0,60,0,0,-13,-16,-54,-54,-54,-62,-247,-266,-225,-115,-199,-120,-132,-85,-83,-89,-80,-74,-86,-66,-177,-112,-108,-105,-239,-165,-161,-145,-180,4132,2448,1951,1500,1564,1114,29973,29974]} 1. e4 {[%emt 0:02:03]} c5 {[%emt 0:00:19]} 2. Nf3 {[%emt 0:00:22]} Nc6 {[%emt 0:00:24]} 3. d4 {[%emt 0:00:29]} cxd4 {[%emt 0:00:32]} 4. Nxd4 {[%emt 0:00:02]} Nf6 {[%emt 0:00:39]} 5. Nc3 {[%emt 0:01:13]} d6 {[%emt 0:00:40]} 6. Bg5 {[%emt 0:01:29]} Bd7 {[%emt 0:00:27]} 7. Qd2 {[%emt 0:00:34]} a6 {[%emt 0:00:35]} 8. O-O-O {[%emt 0:00:48]} e6 {[%emt 0:00:28]} 9. Kb1 {[%emt 0:00:28]} Nxd4 {[%emt 0:01:11]} 10. Qxd4 {[%emt 0:00:26]} Be7 {[%emt 0:00:12]} 11. f3 {[%emt 0:05:53]} Rc8 {[%emt 0:09:49] White has an edge.} 12. h4 {[%emt 0:05:34]} h6 {[%emt 0:01:11]} 13. Be3 {[%emt 0:04:36]} h5 {[%emt 0:01:36]} 14. Qd2 {[%emt 0:13:13] White is more active.} (14. Be2 $14 {deserves consideration.}) 14... b5 $11 {[%emt 0:05:18]} 15. Bg5 {[%emt 0:03:40]} Qc7 {[%emt 0:06:31]} 16. Ne2 {[%emt 0:05:10]} Rd8 {[%emt 0:04:48]} 17. Nd4 {[%emt 0:06:42]} O-O {[%emt 0:06:52]} (17... e5 $14 18. Ne2 Be6) 18. Bd3 {[%emt 0:03:01][%cal Og2g4]} e5 {[%emt 0:04:06]} 19. Ne2 {[%emt 0:01:50]} Be6 {[%emt 0:00:31]} 20. Ng3 {[%emt 0:09:56]} (20. Bxf6 $14 Bxf6 21. g4) 20... g6 {[%emt 0:02:11]} 21. Bh6 {[%emt 0:00:22][%cal Og3f5] aiming for Nf5!} d5 {[%emt 0:03:59] [#]} 22. Nf5 $1 {[%emt 0:01:39]} dxe4 {[%emt 0:14:18]} (22... Rfe8 23. Ng7) 23. Nxe7+ {[%emt 0:01:43]} Qxe7 {[%emt 0:00:03]} 24. Bxf8 {[%emt 0:00:09]} Qxf8 {[%emt 0:00:16]} 25. fxe4 {[%emt 0:00:15]} Ng4 {[%emt 0:00:03]} 26. Rhe1 {[%emt 0:02:35]} Qc5 {[%emt 0:05:14]} 27. Qa5 {[%emt 0:04:27]} Rd6 {[%emt 0:04:40]} (27... Rd4 $14) 28. Be2 $16 {[%emt 0:01:49]} Rc6 {[%emt 0:03:18]} 29. Rd8+ {[%emt 0:05:01]} Kg7 {[%emt 0:00:37] [#]} 30. Qd2 {[%emt 0:00:09]} (30. Rc1 $1 $18) 30... Nf6 {[%emt 0:02:40]} 31. Bf3 {[%emt 0:00:31]} b4 {[%emt 0:00:28]} 32. Bd1 {[%emt 0:07:44]} (32. Rc1 $16) 32... Qb6 $14 {[%emt 0:03:02]} 33. Bf3 {[%emt 0:04:53]} (33. Rd3 $16) 33... a5 {[%emt 0:01:28]} (33... Qc5 $1 $11 {keeps the balance.}) 34. Rd1 {[%emt 0:00:03]} Qc5 {[%emt 0:01:25]} 35. b3 {[%emt 0:03:47]} Rc7 {[%emt 0:01:32]} 36. Rd3 {[%emt 0:00:43]} a4 $1 {[%emt 0:03:19][%cal Ba5a4,Ba4b3,Bb3a2][%mdl 32]} 37. Rc1 {[%emt 0:00:43]} (37. bxa4 Qc6 (37... Ra7 38. Rd8 $11) 38. Qc1 (38. Qxb4 $2 Qxc2+ 39. Ka1 Qxa2#) (38. a5 Qa4 $11) 38... Qxa4 $15) (37. Rd8 $14) 37... Qa5 $11 {[%emt 0:01:20]} 38. Rd6 {[%emt 0:02:16]} Ra7 {[%emt 0:01:47]} 39. c3 {[%emt 0:00:15]} axb3 {[%emt 0:12:11] White must now prevent ...Ne8.} 40. cxb4 {[%emt 0:03:57]} Qa4 {[%emt 0:00:00]} (40... Qxa2+ 41. Qxa2 bxa2+ 42. Ka1 $11) (40... bxa2+ 41. Ka1 Qa4 42. Rxe6 fxe6 43. Qd6 $11) 41. Rc5 $2 {[%emt 0:00:00]} (41. axb3 $2 Qa1+ (41... Bxb3 $2 42. Qb2 $19) 42. Kc2 Rc7+ 43. Kd3 Rxc1 $19 (43... Qxc1 $2 44. Qxc1 Rxc1 45. Kd2 $19)) (41. Rxe6 $1 $15 fxe6 (41... bxa2+ 42. Ka1 $11) 42. Qb2 Qxb4 (42... bxa2+ 43. Ka1 $15) 43. Qxb3) 41... bxa2+ $19 {[%emt 0:00:00]} 42. Ka1 {[%emt 0:00:00][%cal Od2b2]} Rb7 {[%emt 0:00:00]} (42... Qb3 $19 {[%csl Ga2][%cal Rb3b1]} 43. Rc1 Rb7) 43. Rxe6 {[%emt 0:00:00]} (43. Rc2 $17) 43... fxe6 {[%emt 0:00:00]} (43... Rxb4 $19 {[%csl Ga2][%cal Rb4b1]} 44. Qxa2 fxe6 45. Qxa4 Rxa4+ 46. Kb2 Nxe4 47. Rxe5 Nd2) 44. Bd1 {[%emt 0:00:00]} Qa3 {[%emt 0:00:00]} (44... Qxb4 $2 45. Rc7+ (45. Qxa2 $2 Qd4+) 45... Rxc7 46. Qxb4 $18) (44... Nxe4 $142 {...Qa7 would now be deadly.} 45. Bxa4 Nxd2) 45. Bc2 $17 {[%emt 0:01:10]} Ng4 {[%emt 0:00:00]} (45... Qxb4 $2 46. Rc7+ Rxc7 47. Qxb4 $18) 46. Rc3 {[%emt 0:01:06] Prevents Ne3} Qa7 {[%emt 0:00:00]} (46... Qxb4 $6 47. Rc7+ (47. Kxa2 $2 Qb2#) 47... Rxc7 48. Qxb4 Rxc2 49. Qe7+ Kg8 50. Qe8+ (50. Qxe6+ Kg7 $11) 50... Kg7 51. Qe7+ (51. Qxe6 Rxg2 52. Qd7+ Kf8 $11) 51... Kg8 52. Qxe6+ Kg7 53. Qe7+ Kg8 54. Qe6+ Kg7 55. Qe7+ Kg8 56. g3 $11) 47. Rd3 {[%emt 0:00:05]} Nf6 {[%emt 0:00:50]} 48. Rd6 {[%emt 0:01:03]} (48. Rc3 $15) 48... Qb8 {[%emt 0:01:19]} ({Better is} 48... Rf7 $19 {[%cal Of6e4] Threatens to win with ...Nxe4!} 49. Qd3 Ng4) 49. Rxe6 {[%emt 0:00:29]} Rxb4 {[%emt 0:00:31] ( -> ...Rb1+)} 50. Qd3 {[%emt 0:00:19]} (50. Qg5 $2 Rb1+) (50. Qc3 $17 {was the only defense.}) 50... Rb7 {[%emt 0:01:40]} ({And not} 50... Nxe4 51. Qd7+ Kh6 52. Rxg6+ (52. Kxa2 {gets mated.} Rb2+ 53. Ka1 Rxc2) (52. Qf7 $2 {leads to mate.} Rb1+) 52... Kxg6 53. Bxe4+ Rxe4 54. Qe6+ Kg7 55. Qe7+ Kh8 (55... Kg8 56. Qe6+ Kg7 57. Qe7+ Kg6 58. Qe6+ Kg7 $11) 56. Qf6+ Kg8 57. Qg6+ Kh8 58. Qxh5+ Kg7 59. Qg5+ Kf7 (59... Kh8 60. Qh6+ Kg8 61. Qg6+ Kh8 62. Qf6+ Kg8 63. Qg6+ Kh8 64. Qxe4 $11) 60. Qf5+ Kg7 61. Qxe4 $11) 51. Ra6 {[%emt 0:00:31]} Rd7 {[%emt 0:00:28]} 52. Qa3 {[%emt 0:00:40]} Qc8 $4 {[%emt 0:00:33][%mdl 8192] [#] Repels Qc5} (52... Qc7 $19 53. Qxa2 Qc5) 53. Ra8 $1 $18 {[%emt 0:00:07]} Qxa8 {[%emt 0:00:51]} 54. Qxa8 {[%emt 0:00:01]} Rd2 {[%emt 0:00:05]} 55. Qa7+ {[%emt 0:00:13]} Kh8 {[%emt 0:00:38]} 56. Bb3 {[%emt 0:00:20] A wild game.   Weighted Error Value: White=0.33/Black=0.28 (precise) .  Loses game:     	White=1     	---        Missed win:     	---       	Black=1      Mistake:       	White=9     	Black=7      Inaccurate:     	White=3     	Black=6      OK:         	White=14    	Black=15     Best:        	White=5     	Black=4      Strong:       	White=1     	Black=1} 1-0

[Event "3rd President Cup-A 2024"]
[Site "Tashkent"]
[Date "2024.11.28"]
[Round "8.6"]
[White "Nigmatov, Ortik"]
[Black "Sankalp Gupta"]
[Result "1-0"]
[ECO "C11"]
[WhiteElo "2447"]
[BlackElo "2539"]
[Annotator "TA"]
[PlyCount "79"]
[EventDate "2024.11.22"]
[EventType "swiss"]
[EventCountry "UZB"]
[SourceTitle "playchess.com"]
[Source "ChessBase"]
[SourceQuality "1"]
[TimeControl "5400+30"]

{[%evp 20,79,10,0,0,0,0,0,0,-8,-17,-6,-4,-19,0,-14,21,17,171,166,166,174,145,152,228,207,254,243,364,222,227,160,145,151,183,184,172,120,105,115,196,122,206,121,225,197,350,343,356,356,433,398,1036,864,5014,5014,29979,29980,29980,29981,29995,29996]} 1. e4 {[%emt 0:01:40]} e6 {[%emt 0:00:03]} 2. d4 {[%emt 0:00:26]} d5 {[%emt 0:00:02]} 3. Nc3 {[%emt 0:00:08]} Nf6 {[%emt 0:00:02]} 4. e5 {[%emt 0:00:07]} Nfd7 {[%emt 0:00:03]} 5. Nce2 {[%emt 0:03:50]} c5 {[%emt 0:01:20]} 6. c3 {[%emt 0:00:05]} Nc6 {[%emt 0:00:09]} 7. Nf3 {[%emt 0:00:04]} a5 {[%emt 0:00:55] C11: French: Classical System: 4 e5 and 4 Bg5 dxe4.} 8. h4 {[%emt 0:03:36]} a4 {[%emt 0:00:26]} 9. a3 {[%emt 0:00:05]} Qa5 {[%emt 0:03:47]} 10. Bd2 {[%emt 0:02:36]} Qb6 {[%emt 0:00:03]} 11. Rb1 {[%emt 0:01:50]} cxd4 $146 {[%emt 0:10:17]} ({Predecessor:} 11... f6 12. Nf4 cxd4 13. Nxe6 Ndxe5 14. Nfxd4 Nxd4 15. Nxd4 Bc5 16. Be3 Bg4 17. f3 Bd7 {0-1 Blohberger,F (2490)-Bartel,M (2627) EU-ch Rapid Katowice 2022 (10)}) 12. cxd4 {[%emt 0:00:15]} f6 {[%emt 0:00:01]} 13. exf6 {[%emt 0:14:25]} Nxf6 {[%emt 0:00:03]} 14. Nc3 {[%emt 0:00:39]} Nxd4 {[%emt 0:03:58]} 15. Nxd4 {[%emt 0:01:09]} Qxd4 {[%emt 0:00:03]} 16. Bb5+ {[%emt 0:04:36]} Kf7 {[%emt 0:05:48]} 17. Qe2 {[%emt 0:04:15]} e5 {[%emt 0:08:19]} 18. Bg5 {[%emt 0:13:43]} (18. Be3 $5 Qg4 $8 19. f3 Qg3+ 20. Kf1 $11) 18... Qb6 $2 {[%emt 0:23:54]} (18... Qg4 $11 {and Black stays safe.}) 19. Bxf6 $1 $18 {[%emt 0:04:27]} (19. Bxa4 d4 20. O-O (20. Bxf6 $2 dxc3 $19) 20... dxc3 $15) (19. Nxa4 Rxa4 20. Bxa4 (20. Bxf6 $2 Re4 $19) 20... Qa5+ 21. b4 Qxa4 22. Qxe5 Qb5 $19 (22... Qxa3 23. O-O $11)) (19. Qxe5 $6 Qe6 20. Qe2 h5 $14) 19... gxf6 {[%emt 0:00:18]} 20. Nxd5 {[%emt 0:04:42]} Qa5+ {[%emt 0:00:50]} 21. Nc3 {[%emt 0:00:25]} Bh6 {[%emt 0:11:00]} (21... Bxa3 $16 22. Ra1 Bb4) 22. Rd1 $18 {[%emt 0:10:01]} Kg7 {[%emt 0:03:01]} 23. O-O {[%emt 0:01:05]} (23. Bxa4 Qc7 24. O-O Be6 $18) 23... Rf8 {[%emt 0:01:18]} (23... Rd8 {keeps fighting.} 24. Qf3 (24. Bxa4 Be6 $18) (24. Nxa4 Rg8 $18) 24... Rf8) 24. Bd7 {[%emt 0:03:53]} (24. Bxa4 Qa6 25. Bb5 Qe6 $18) (24. Nxa4 Kh8 25. Nc5 Qc7 $18) 24... Kh8 {[%emt 0:00:57]} 25. Rd5 {[%emt 0:01:18]} (25. Nxa4 $2 Bxd7 26. Rxd7 Qxa4 $19) (25. Bxa4 $6 Qc7 $16) 25... Qa6 {[%emt 0:02:11]} 26. Qh5 {[%emt 0:01:16]} (26. Bxa4 $2 Qxe2 27. Nxe2 Rxa4 $19) 26... Bg7 {[%emt 0:00:25]} 27. Rfd1 {[%emt 0:03:29]} (27. Nxa4 $2 Bxd7 28. Rxd7 Qxa4 $19) (27. Bxa4 Be6 28. Rc5 f5 $14) 27... f5 {[%emt 0:01:51]} 28. Bxc8 {[%emt 0:04:11]} (28. Nxa4 Bxd7 29. Rxd7 Qxa4 $15) (28. Bxa4 Qg6 29. Qe2 Be6) (28. Rd6 $18 Qc4 29. Nd5 Bxd7 30. Rxd7) 28... Raxc8 $16 {[%emt 0:00:01]} 29. Rd7 {[%emt 0:00:06]} Qc4 {[%emt 0:00:51]} (29... Qg6 $16 30. Qxg6 hxg6 31. Nxa4 (31. Rxb7 Rfd8 $16) 31... b5) 30. Rxb7 {[%emt 0:01:52]} ({Better is} 30. Qg5 $18 {[%csl Gd7][%cal Rg5g7]} Rf7 31. R1d5) 30... Rc6 {[%emt 0:00:01]} (30... Rc7 $16 31. Rxc7 Qxc7) 31. Rb4 {[%emt 0:04:28]} (31. Rxg7 $18 Kxg7 32. Rd7+ Rf7 33. Qxf5) 31... Qg8 {[%emt 0:00:01]} (31... Qe6 $16 {was necessary.} 32. Rb7 (32. Rxa4 e4 $16) 32... Rb6) 32. Rd7 $1 $18 {[%emt 0:02:42]} (32. Nxa4 e4 $14) 32... e4 $2 {[%emt 0:02:19]} (32... Rg6 33. Rbb7 (33. Nxa4 e4 $11) 33... Qc4) 33. Rbb7 $18 {[%emt 0:00:45]} (33. Nxa4 e3 $14) (33. Rxa4 Rh6 34. Qd1 (34. Qg5 Rg6 $14) 34... Rxh4 $16) 33... Rh6 {[%emt 0:00:10]} 34. Qd1 {[%emt 0:04:31]} Bf6 {[%emt 0:01:24]} 35. Qd6 {[%emt 0:01:09]} ({Weaker is} 35. Nxa4 e3 36. Qf3 (36. fxe3 $2 {perishes.} Qg3 $19) 36... Qc4 37. Qxe3 Qxh4 $11) 35... Bg5 $2 {[%emt 0:02:57]} (35... Bg7 36. Qf4 Rg6) 36. Qc5 $18 {[%emt 0:02:13]} Bxh4 {[%emt 0:02:12]} 37. Nd5 {[%emt 0:00:04]} Bf6 {[%emt 0:03:17]} 38. Nxf6 {[%emt 0:00:29]} Rhxf6 {[%emt 0:00:01]} 39. Qc7 {[%emt 0:00:25]} Rh6 {[%emt 0:00:08]} 40. Rg7 {[%emt 0:00:16]} 1-0

[Event "3rd President Cup-A 2024"]
[Site "Tashkent"]
[Date "2024.11.28"]
[Round "8.7"]
[White "Yakubboev, Nodirbek"]
[Black "Prraneeth Vuppala"]
[Result "1-0"]
[ECO "C78"]
[WhiteElo "2668"]
[BlackElo "2459"]
[Annotator "TA"]
[PlyCount "87"]
[EventDate "2024.11.22"]
[EventType "swiss"]
[EventCountry "UZB"]
[SourceTitle "playchess.com"]
[Source "ChessBase"]
[SourceQuality "1"]
[TimeControl "5400+30"]

{[%evp 20,87,0,0,0,-3,0,0,-8,-23,12,0,30,22,29,4,10,0,43,52,68,12,38,37,88,45,72,72,153,152,160,131,127,141,138,112,150,143,152,154,159,152,171,161,179,179,174,175,194,178,183,189,224,191,212,222,244,243,275,276,247,266,288,287,338,320,528,528,475,485]} 1. e4 {[%emt 0:00:24]} e5 {[%emt 0:00:14]} 2. Nf3 {[%emt 0:00:07]} Nc6 {[%emt 0:00:05]} 3. Bb5 {[%emt 0:00:07]} a6 {[%emt 0:00:24]} 4. Ba4 {[%emt 0:00:06]} Nf6 {[%emt 0:00:38]} 5. O-O {[%emt 0:00:13]} b5 {[%emt 0:00:21]} 6. Bb3 {[%emt 0:00:06]} Bc5 {[%emt 0:00:05]} 7. c3 {[%emt 0:00:09]} d6 {[%emt 0:00:11]} 8. d4 {[%emt 0:00:15]} Bb6 {[%emt 0:00:15]} 9. a4 {[%emt 0:00:22]} Rb8 {[%emt 0:01:00]} 10. a5 $1 {[%emt 0:01:21] The main line 10.a5 scores better than 10.axb5. C78: Ruy Lopez: Archangelsk and Möller Defences.} Ba7 {[%emt 0:00:16]} (10... Nxa5 $6 11. Rxa5 Bxa5 12. dxe5 Nxe4 13. Qd5 Be6 $14) 11. h3 {[%emt 0:00:46]} Bb7 {[%emt 0:00:49]} 12. Re1 {[%emt 0:01:20]} O-O {[%emt 0:03:37]} 13. Be3 {[%emt 0:03:09]} exd4 $1 {[%emt 0:08:12]} ({Much weaker is} 13... Nxe4 $6 14. d5 $16) 14. cxd4 {[%emt 0:00:13]} Ne7 {[%emt 0:00:10]} (14... Nxe4 $2 {loses.} 15. d5 $18) 15. d5 {[%emt 0:18:25]} c5 $146 {[%emt 0:02:54]} ({Predecessor:} 15... Bxe3 16. Rxe3 c6 17. dxc6 Bxc6 18. Nbd2 Ng6 19. Qe1 Re8 20. Ng5 Re7 21. Ndf3 h6 {0-1 Pichot,A (2637)-Dubov,D (2708) MrDodgy Online Inv Gp-A 3rd blitz 2022 (7)}) 16. Bc2 {[%emt 0:04:19]} Ng6 {[%emt 0:05:20]} 17. Nbd2 {[%emt 0:01:45]} Re8 {[%emt 0:03:34]} 18. Qb1 {[%emt 0:04:44]} Rc8 {[%emt 0:07:40]} 19. Nf1 {[%emt 0:03:42]} Nh5 {[%emt 0:03:06]} 20. Kh2 {[%emt 0:05:42]} (20. Qc1 $14) 20... Bb8 {[%emt 0:07:48]} 21. Bg5 {[%emt 0:10:30]} f6 {[%emt 0:03:21]} ({Better is} 21... Qc7 $14) 22. Be3 {[%emt 0:01:39]} Ne5 {[%emt 0:04:07]} 23. Bd1 {[%emt 0:02:32]} Ng6 {[%emt 0:08:43] [#]} (23... Nc4 $142) 24. Ng1 $1 $16 {[%emt 0:07:04]} Nhf4 {[%emt 0:01:03]} 25. g3 {[%emt 0:00:44]} Nxd5 {[%emt 0:01:00]} 26. exd5 {[%emt 0:00:02]} Bxd5 {[%emt 0:00:04]} 27. Bc2 {[%emt 0:00:12]} Nf8 {[%emt 0:17:42]} 28. b4 {[%emt 0:03:54]} Qd7 {[%emt 0:05:31]} 29. Bf5 {[%emt 0:05:27]} Be6 {[%emt 0:00:06]} 30. Bxe6+ {[%emt 0:00:05]} Nxe6 {[%emt 0:00:02]} 31. Ne2 {[%emt 0:01:01]} c4 {[%emt 0:00:30]} 32. Qf5 {[%emt 0:02:54]} d5 {[%emt 0:00:49] [#]} 33. Rad1 $1 {[%emt 0:00:29]} Rcd8 {[%emt 0:00:38]} 34. Bb6 {[%emt 0:03:06]} Ng5 {[%emt 0:10:43]} 35. Nd4 {[%emt 0:00:08]} Rxe1 {[%emt 0:00:15]} 36. Qxd7 {[%emt 0:00:15]} (36. Rxe1 $2 {is the wrong capture.} Qxf5 37. Nxf5 Nf3+ 38. Kh1 Nxe1 $19) 36... Rxd7 {[%emt 0:00:15]} 37. Rxe1 {[%emt 0:00:11]} Kf7 {[%emt 0:00:20]} 38. Ne3 {[%emt 0:01:51]} Be5 {[%emt 0:02:59]} 39. Nec2 {[%emt 0:02:55]} Ne4 {[%emt 0:00:19]} 40. Kg2 {[%emt 0:00:25]} Bd6 {[%emt 0:00:46]} 41. Nc6 {[%emt 0:02:06]} h5 {[%emt 0:01:31]} 42. N2d4 {[%emt 0:03:02]} g6 $2 {[%emt 0:01:02]} (42... Nc3 {is a better defense.} 43. Nf5 d4) 43. Nxb5 $18 {[%emt 0:01:35]} axb5 {[%emt 0:01:35]} 44. a6 {[%emt 0:00:08]} 1-0

[Event "3rd President Cup-A 2024"]
[Site "Tashkent"]
[Date "2024.11.28"]
[Round "8.8"]
[White "Karthikeyan, Murali"]
[Black "Pingin, Artem"]
[Result "1/2-1/2"]
[ECO "B92"]
[WhiteElo "2625"]
[BlackElo "2447"]
[Annotator "TA"]
[PlyCount "89"]
[EventDate "2024.11.22"]
[EventType "swiss"]
[EventCountry "UZB"]
[SourceTitle "playchess.com"]
[Source "ChessBase"]
[SourceQuality "1"]
[TimeControl "5400+30"]

{[%evp 24,89,0,0,16,8,19,20,36,57,35,41,66,49,120,27,49,43,28,34,56,20,50,45,44,8,39,0,0,0,24,33,21,0,0,0,0,0,0,0,14,0,5,6,6,6,22,21,33,10,10,4,4,4,11,11,12,0,1,0,0,0,0,0,0,0,0,0]} 1. e4 {[%emt 0:00:17]} c5 {[%emt 0:00:08]} 2. Nf3 {[%emt 0:01:09]} d6 {[%emt 0:00:05]} 3. d4 {[%emt 0:01:33]} cxd4 {[%emt 0:00:05]} 4. Nxd4 {[%emt 0:00:07]} Nf6 {[%emt 0:00:07]} 5. Nc3 {[%emt 0:00:08]} a6 {[%emt 0:00:05]} 6. Be2 {[%emt 0:00:34]} e5 {[%emt 0:00:06]} 7. Nb3 {[%emt 0:01:04]} Be7 {[%emt 0:00:16]} 8. Be3 {[%emt 0:00:56]} Be6 {[%emt 0:00:06]} 9. f4 {[%emt 0:02:04]} exf4 {[%emt 0:03:43]} 10. Bxf4 {[%emt 0:00:07]} Nc6 {[%emt 0:00:39]} 11. Qd2 {[%emt 0:00:19]} O-O {[%emt 0:12:38]} 12. O-O-O {[%emt 0:01:18]} Ne5 {[%emt 0:00:04]} 13. Kb1 {[%emt 0:01:36]} Qc7 {[%emt 0:09:04]} 14. Rhg1 {[%emt 0:06:00][%cal Og2g4]} b5 {[%emt 0:05:03] [#]} 15. g4 $1 {[%emt 0:03:51][%cal Bg2g4,Bg4g5][%mdl 32]} Rfc8 {[%emt 0:04:48]} (15... b4 16. Nd5) 16. g5 {[%emt 0:07:03]} Nfd7 {[%emt 0:00:38]} 17. Nd4 {[%emt 0:11:29]} Bf8 {[%emt 0:11:40]} 18. h4 {[%emt 0:22:30]} b4 {[%emt 0:11:08]} ({Better is} 18... Nb6 $14) 19. Nxe6 {[%emt 0:18:03]} ({White should play} 19. Nd5 $16 Bxd5 20. exd5) 19... fxe6 $11 {[%emt 0:00:22]} 20. Na4 {[%emt 0:00:01]} Qc6 {[%emt 0:08:41][%csl LRa4,LRe4]} 21. b3 {[%emt 0:00:12]} (21. Qxb4 $2 {loses.} Qxc2+ 22. Ka1 Rab8 $19 (22... Qxe2 $2 23. Nc3 $19)) 21... a5 {[%emt 0:02:22]} 22. h5 {[%emt 0:02:47]} Nc5 {[%emt 0:07:40]} (22... Rc7 {with more complications.} 23. g6 h6 24. Rgf1 Qxe4 25. Bxe5 Nxe5 26. Nb6 Rb8) 23. Nxc5 {[%emt 0:00:41]} Qxc5 {[%emt 0:00:02]} 24. Bxe5 {[%emt 0:11:08]} Qxe5 {[%emt 0:00:04]} 25. Qd4 {[%emt 0:00:13]} Rc5 {[%emt 0:02:11]} 26. Bc4 {[%emt 0:00:50]} Re8 {[%emt 0:00:25]} 27. Qf2 {[%emt 0:03:52] [#] Black must now prevent Rdf1.} Be7 $1 {[%emt 0:01:31]} 28. Qf5 {[%emt 0:01:16]} Qxf5 {[%emt 0:15:41]} 29. exf5 {[%emt 0:00:01]} d5 $1 {[%emt 0:00:00]} 30. Bd3 {[%emt 0:00:13] Hoping for f6.} exf5 {[%emt 0:02:11]} 31. Bxf5 {[%emt 0:01:46]} Bd6 {[%emt 0:00:04]} 32. Rge1 {[%emt 0:02:13]} Rxe1 {[%emt 0:01:57]} 33. Rxe1 {[%emt 0:00:01][%mdl 4096] Endgame. KRB-KRB} d4 {[%emt 0:00:03]} 34. Rf1 {[%emt 0:00:46]} Re5 {[%emt 0:00:16]} 35. g6 {[%emt 0:01:01]} hxg6 {[%emt 0:00:10]} 36. hxg6 {[%emt 0:00:12] Bd3 is the strong threat.} Be7 {[%emt 0:00:40] The position is equal.} 37. Kc1 {[%emt 0:00:49]} (37. Bd3 $5 Bf6 $8 38. Kb2 $11) 37... Bf6 {[%emt 0:00:44]} 38. Kd2 {[%emt 0:00:22]} Re3 {[%emt 0:00:17]} 39. Bd3 {[%emt 0:00:41]} Kf8 {[%emt 0:01:29]} 40. Kc1 {[%emt 0:00:33]} Ke7 {[%emt 0:00:19]} 41. Kb2 {[%emt 0:01:14]} Bh4 42. Rf7+ {[%emt 0:00:00]} Kd6 {[%emt 0:01:43]} 43. Rf4 {[%emt 0:00:09]} (43. Rxg7 $2 {is the wrong capture.} Be1 44. c3 Rxd3 $19) 43... Bg3 {[%emt 0:01:50]} 44. Rxd4+ {[%emt 0:00:17]} Kc5 {[%emt 0:00:23]} 45. Rc4+ {[%emt 0:01:34] Weighted Error Value: White=0.13 (very precise) /Black=0.10 (very precise) .  Mistake:       	White=1     	Black=1      Inaccurate:     	White=3     	Black=2      OK:         	White=13    	Black=12     Best:        	White=1     	---        Strong:       	---       	Black=2} 1/2-1/2

[Event "3rd President Cup-A 2024"]
[Site "Tashkent"]
[Date "2024.11.28"]
[Round "8.9"]
[White "Daghli, Arash"]
[Black "Pranesh M"]
[Result "1/2-1/2"]
[ECO "E49"]
[WhiteElo "2435"]
[BlackElo "2580"]
[Annotator "TA"]
[PlyCount "51"]
[EventDate "2024.11.22"]
[EventType "swiss"]
[EventCountry "UZB"]
[SourceTitle "playchess.com"]
[Source "ChessBase"]
[SourceQuality "1"]
[TimeControl "5400+30"]

{[%evp 23,51,19,132,19,10,10,12,25,22,13,8,5,6,0,0,0,0,0,0,5,0,0,0,0,0,0,0,0,2,0]} 1. c4 {[%emt 0:00:02]} e6 {[%emt 0:00:23]} 2. Nc3 {[%emt 0:00:07]} d5 {[%emt 0:00:19]} 3. d4 {[%emt 0:00:06]} Bb4 {[%emt 0:00:48]} 4. e3 {[%emt 0:01:18]} Nf6 {[%emt 0:00:48]} 5. a3 {[%emt 0:00:08]} Bxc3+ {[%emt 0:01:13]} 6. bxc3 {[%emt 0:00:02]} O-O {[%emt 0:00:25]} 7. cxd5 {[%emt 0:00:25]} exd5 {[%emt 0:00:07]} 8. Bd3 {[%emt 0:00:07]} c5 {[%emt 0:00:58]} 9. Ne2 {[%emt 0:00:08]} b6 {[%emt 0:02:08]} 10. O-O {[%emt 0:00:17]} Ba6 {[%emt 0:00:29]} 11. f3 {[%emt 0:01:00]} Re8 {[%emt 0:00:53]} 12. Ng3 {[%emt 0:01:17]} Qc8 {[%emt 0:01:40]} (12... Bxd3 $11 13. Qxd3 Nbd7) 13. Ra2 {[%emt 0:10:36]} (13. e4 $16) 13... Bxd3 $11 {[%emt 0:02:45]} 14. Qxd3 {[%emt 0:02:12]} Qa6 $1 {[%emt 0:00:22]} 15. Qxa6 {[%emt 0:04:33]} Nxa6 {[%emt 0:00:12]} 16. Re2 {[%emt 0:00:12] The position is equal.} Nc7 {[%emt 0:13:44]} 17. dxc5 {[%emt 0:14:57]} bxc5 {[%emt 0:03:03] [#]} 18. c4 $1 {[%emt 0:00:50]} dxc4 {[%emt 0:04:46]} 19. Rc2 {[%emt 0:00:31]} Nfd5 {[%emt 0:05:08]} 20. Rxc4 {[%emt 0:08:23]} Nxe3 {[%emt 0:04:51]} 21. Bxe3 {[%emt 0:00:08]} Rxe3 {[%emt 0:00:02]} 22. Rxc5 {[%emt 0:00:17]} Ne6 {[%emt 0:00:19]} 23. Ra5 {[%emt 0:00:15]} g6 {[%emt 0:02:24]} 24. Rd1 {[%emt 0:02:31]} Rb3 {[%emt 0:04:33]} 25. Ne4 {[%emt 0:02:13]} Rb7 {[%emt 0:07:16]} 26. Rd2 {[%emt 0:06:03] White did not feel at home in the position after the opening.   Weighted Error Value: White=0.23 (precise) /Black=0.15 (very precise) .  OK:         	White=6     	Black=7      Best:        	White=1     	Black=1      Strong:       	---       	Black=1} 1/2-1/2